bitfinex-derivatives/quotes_BTCF0:USTF0_20240925
["timestamp","ask_amount","ask_price","bid_price","bid_amount"]
[1727289342681,0.3608,63230.0,63229.0,0.079081]
[1727289343505,0.0037,63237.0,63235.0,0.079074]
[1727289343506,0.082771,63237.0,63235.0,0.079074]
[1727289343676,0.079067,63241.0,63235.0,0.079074]
[1727289344180,0.39564,63242.0,63235.0,0.079074]
[1727289344582,0.39564,63242.0,63235.0,0.18583094]
[1727289344783,0.0037,63243.0,63235.0,0.18583094]
[1727289345487,0.082764,63243.0,63235.0,0.18583094]
[1727289345684,0.0258029,63239.0,63235.0,0.18583094]
[1727289345884,0.0258029,63239.0,63235.0,0.079074]
[1727289346087,0.0258029,63239.0,63235.0,0.18586216]
[1727289346385,0.3638,63236.0,63235.0,0.18586216]
[1727289347695,0.003,63236.0,63235.0,0.28015016]
[1727289347881,0.003,63236.0,63235.0,0.18586216]
[1727289348083,0.003,63236.0,63235.0,0.079074]
[1727289348795,0.08246131,63243.0,63242.0,0.079065]
[1727289348796,0.0037,63243.0,63242.0,0.079065]
[1727289349088,0.07876131,63246.0,63242.0,0.18]
[1727289349290,0.07906,63247.0,63246.0,0.07906]
[1727289349484,0.15782131,63247.0,63246.0,0.07906]
[1727289350290,0.07906,63247.0,63246.0,0.07906]
[1727289350688,0.08806,63247.0,63246.0,0.07906]
[1727289350881,0.10206,63247.0,63246.0,0.07906]
[1727289351391,0.10006,63247.0,63246.0,0.07906]
[1727289351696,0.12588325,63247.0,63246.0,0.07906]
[1727289352609,0.12588325,63247.0,63246.0,0.001]
[1727289352610,0.30288225,63247.0,63246.0,0.001]
[1727289352784,0.30288225,63247.0,63246.0,0.08006]
[1727289352985,0.22382325,63247.0,63246.0,0.08006]
[1727289353183,0.04382325,63247.0,63246.0,0.08006]
[1727289355496,0.12288225,63247.0,63246.0,0.001]
[1727289355798,0.30288225,63247.0,63246.0,0.001]
[1727289356904,0.33768225,63247.0,63246.0,0.001]
[1727289360095,0.04382325,63247.0,63246.0,0.08006]
[1727289360898,0.00128,63256.0,63246.0,1.25532]
[1727289361207,0.0037,63260.0,63259.0,0.079044]
[1727289361505,0.3655,63270.0,63259.0,0.5408]
[1727289361804,0.3608,63270.0,63262.0,0.04705357]
[1727289362397,0.3608,63270.0,63265.0,0.079036]
[1727289362593,0.5408,63270.0,63259.0,0.40973357]
[1727289362794,0.5538,63270.0,63260.0,0.04705357]
[1727289363100,0.5538,63270.0,63259.0,0.3618]
[1727289363101,0.07862374,63263.0,63259.0,0.3618]
[1727289363300,0.07862374,63264.0,63263.0,0.079039]
[1727289363506,0.07862374,63265.0,63259.0,0.5418]
[1727289363702,0.07862374,63264.0,63262.0,0.001]
[1727289364209,0.07862374,63264.0,63263.0,0.079039]
[1727289364407,0.07862374,63265.0,63264.0,0.079037]
[1727289365092,0.50579392,63270.0,63265.0,0.079036]
[1727289365304,0.49379392,63270.0,63265.0,0.079036]
[1727289365489,0.49379392,63270.0,63265.0,0.080036]
[1727289365490,0.49479392,63270.0,63265.0,0.080036]
[1727289365697,0.3608,63268.0,63265.0,0.080036]
[1727289366104,0.3608,63268.0,63267.0,0.079034]
[1727289366301,0.014,63270.0,63269.0,0.079031]
[1727289366506,0.028,63270.0,63269.0,0.079031]
[1727289367204,0.09424595,63271.0,63270.0,0.07903]
[1727289367406,0.02618554,63272.0,63271.0,0.079029]
[1727289367705,0.02618554,63272.0,63268.0,0.18]
[1727289367706,0.09424595,63274.0,63268.0,0.18]
[1727289367899,0.07852207,63270.0,63269.0,0.079031]
[1727289368099,0.09424595,63274.0,63270.0,0.07903]
[1727289368100,0.07852207,63271.0,63270.0,0.07903]
[1727289368396,0.09424595,63275.0,63274.0,0.079025]
[1727289369212,0.3608,63276.0,63275.0,0.079024]
[1727289370108,0.38656111,63276.0,63275.0,0.079024]
[1727289370505,0.41356111,63276.0,63275.0,0.081024]
[1727289373613,0.05276111,63276.0,63275.0,0.081024]
[1727289374218,0.04576111,63276.0,63275.0,0.081024]
[1727289374621,0.04576111,63276.0,63275.0,0.160048]
[1727289374913,0.0037,63286.0,63275.0,0.160048]
[1727289374914,0.0037,63286.0,63285.0,0.079011]
[1727289375101,0.02601579,63287.0,63286.0,0.07901]
[1727289375415,0.0345,63289.0,63288.0,0.079007]
[1727289375610,0.3608,63295.0,63294.0,0.079]
[1727289375815,0.3608,63295.0,63294.0,0.259]
[1727289375816,0.38693223,63295.0,63294.0,0.259]
[1727289376908,0.41293223,63295.0,63294.0,0.261]
[1727289377507,0.026,63295.0,63294.0,0.261]
[1727289377806,0.3645,63305.0,63301.0,0.078991]
[1727289378010,0.04266925,63304.0,63301.0,0.078991]
[1727289378216,0.20468067,63302.0,63299.0,0.08507918]
[1727289378421,0.12800775,63301.0,63300.0,0.078992]
[1727289379400,0.12800775,63301.0,63300.0,0.079992]
[1727289379607,0.13600775,63301.0,63300.0,0.079992]
[1727289380003,0.13600775,63301.0,63300.0,0.001]
[1727289380411,0.21499875,63301.0,63300.0,0.001]
[1727289381314,0.21499875,63301.0,63300.0,0.002]
[1727289382110,1.28891875,63301.0,63291.0,0.0037]
[1727289382313,0.18,63292.0,63289.0,0.079005]
[1727289382519,0.12800775,63291.0,63289.0,0.079005]
[1727289382818,0.12800775,63290.0,63289.0,0.079005]
[1727289383619,0.12041254,63290.0,63289.0,0.079005]
[1727289383918,0.079006,63289.0,63285.0,0.079011]
[1727289384118,0.18,63287.0,63285.0,0.079011]
[1727289384321,0.12041254,63286.0,63285.0,0.079011]
[1727289385119,0.18,63287.0,63285.0,0.079011]
[1727289385908,0.440687,63288.0,63285.0,0.081011]
[1727289386311,0.3608,63288.0,63287.0,0.079009]
[1727289387409,0.3608,63288.0,63285.0,0.002]
[1727289387410,0.439807,63288.0,63285.0,0.002]
[1727289387616,0.439807,63288.0,63286.0,0.07901]
[1727289388211,0.07901,63286.0,63285.0,0.001]
[1727289388413,0.25901,63286.0,63285.0,0.001]
[1727289388624,0.079014,63283.0,63280.0,0.079017]
[1727289388826,0.5408,63281.0,63280.0,0.079017]
[1727289389125,0.3608,63281.0,63280.0,0.079017]
[1727289389421,0.3598,63281.0,63280.0,0.079017]
[1727289390325,0.3598,63281.0,63280.0,0.085017]
[1727289390821,0.3598,63281.0,63280.0,0.087017]
[1727289392230,0.02531454,63283.0,63280.0,0.008]
[1727289392517,0.259011,63285.0,63282.0,0.079014]
[1727289394716,0.259011,63285.0,63282.0,0.083014]
[1727289394918,0.28535779,63285.0,63282.0,0.083014]
[1727289395526,0.28535779,63285.0,63283.0,0.079013]
[1727289396047,0.10535779,63285.0,63284.0,0.079012]
[1727289396227,0.02634679,63285.0,63284.0,0.079012]
[1727289396434,0.3608,63287.0,63286.0,0.07901]
[1727289397527,0.439809,63287.0,63286.0,0.07901]
[1727289399933,0.079012,63285.0,63284.0,0.079012]
[1727289400129,0.19915129,63285.0,63284.0,0.0468446]
[1727289400632,0.079014,63283.0,63280.0,0.079016]
[1727289400826,0.19915429,63282.0,63280.0,0.079016]
[1727289401132,0.12013929,63281.0,63280.0,0.079016]
[1727289402238,0.11813929,63281.0,63280.0,0.079016]
[1727289402729,0.11813929,63281.0,63280.0,0.085016]
[1727289402927,0.11813929,63281.0,63280.0,0.087016]
[1727289403235,0.07130131,63281.0,63280.0,0.008]
[1727289403416,0.15031731,63281.0,63280.0,0.087017]
[1727289405025,0.07130131,63281.0,63280.0,0.087017]
[1727289407233,0.19882425,63281.0,63280.0,0.087017]
[1727289407423,0.40350492,63281.0,63280.0,0.087017]
[1727289408228,0.518833,63281.0,63272.0,0.12608057]
[1727289408430,0.439816,63281.0,63272.0,0.12608057]
[1727289409022,0.439816,63281.0,63273.0,0.04705357]
[1727289409539,0.439816,63281.0,63274.0,0.04705357]
[1727289410229,0.439816,63281.0,63280.0,0.079017]
[1727289410434,0.440816,63281.0,63280.0,0.079017]
[1727289410830,0.439816,63281.0,63280.0,0.079017]
[1727289411131,0.440816,63281.0,63280.0,0.079017]
[1727289411432,0.079016,63281.0,63280.0,0.079017]
[1727289411739,0.079016,63281.0,63280.0,0.084017]
[1727289413435,0.079016,63281.0,63280.0,0.086017]
[1727289414033,0.439816,63281.0,63280.0,0.086017]
[1727289414233,0.46637639,63287.0,63281.0,0.079016]
[1727289414537,0.079011,63286.0,63280.0,0.007]
[1727289414734,0.38648739,63287.0,63283.0,0.079013]
[1727289414929,0.38648739,63287.0,63286.0,0.07901]
[1727289415128,0.47368965,63287.0,63286.0,0.07901]
[1727289416430,0.67837032,63287.0,63286.0,0.07901]
[1727289417229,0.67937032,63287.0,63286.0,0.07901]
[1727289417832,0.67936922,63287.0,63286.0,0.07901]
[1727289419042,0.47468855,63287.0,63286.0,0.07901]
[1727289421248,0.47468537,63287.0,63286.0,0.07901]
[1727289423443,0.38748739,63287.0,63286.0,0.07901]
[1727289426440,0.3618,63287.0,63286.0,0.07901]
[1727289426643,0.001,63287.0,63286.0,0.63206]
[1727289428945,0.001,63287.0,63286.0,0.15802]
[1727289430543,0.001,63287.0,63286.0,0.23703]
[1727289430941,0.02881712,63293.0,63292.0,0.079002]
[1727289431150,0.3608,63295.0,63294.0,0.079]
[1727289431443,0.09476719,63297.0,63296.0,0.078997]
[1727289431751,0.09476719,63300.0,63299.0,0.078994]
[1727289431941,0.078992,63301.0,63300.0,0.078992]
[1727289431942,0.17375919,63301.0,63300.0,0.078992]
[1727289433359,0.078992,63301.0,63300.0,0.078992]
[1727289433538,0.078992,63301.0,63300.0,0.079992]
[1727289433935,0.086992,63301.0,63300.0,0.080992]
[1727289435250,0.008,63301.0,63300.0,0.080992]
[1727289436539,0.09476719,63303.0,63302.0,0.07899]
[1727289437647,0.09476719,63303.0,63302.0,0.07999]
[1727289437648,0.10276719,63303.0,63302.0,0.07999]
[1727289438242,0.21667873,63303.0,63296.0,0.078997]
[1727289438554,0.20867873,63302.0,63301.0,0.258991]
[1727289438744,0.20867873,63302.0,63301.0,0.078991]
[1727289439442,0.14384451,63302.0,63301.0,0.078991]
[1727289439750,0.14384451,63302.0,63301.0,0.079991]
[1727289440143,0.15084451,63302.0,63301.0,0.080991]
[1727289441146,0.09418096,63302.0,63301.0,0.080991]
[1727289443453,0.17317096,63302.0,63301.0,0.002]
[1727289443658,0.35317096,63302.0,63292.0,0.0074]
[1727289443952,0.18,63297.0,63295.0,0.078998]
[1727289444149,0.14384451,63296.0,63295.0,0.078998]
[1727289444349,0.14384451,63296.0,63289.0,0.1837]
[1727289444350,0.14384451,63296.0,63289.0,0.16328182]
[1727289444549,0.3608,63298.0,63294.0,0.079]
[1727289444550,0.14385415,63295.0,63294.0,0.079]
[1727289445346,0.3608,63298.0,63293.0,0.18]
[1727289445347,0.3608,63298.0,63297.0,0.078996]
[1727289445953,0.3608,63298.0,63297.0,0.258996]
[1727289446859,0.3648,63298.0,63297.0,0.078996]
[1727289448856,0.443795,63298.0,63297.0,0.078996]
[1727289449561,0.3648,63298.0,63297.0,0.078996]
[1727289450666,0.004,63298.0,63297.0,0.078996]
[1727289453357,0.14784292,63298.0,63297.0,0.05086549]
[1727289455559,0.22684034,63298.0,63297.0,0.05086549]
[1727289457856,0.14784534,63298.0,63297.0,0.05086549]
[1727289460254,0.06066292,63298.0,63297.0,0.05086549]
[1727289460466,0.004,63298.0,63297.0,0.05086549]
[1727289461665,0.04268945,63298.0,63297.0,0.05086549]
[1727289462575,0.004,63298.0,63297.0,0.05086549]
[1727289465363,0.04268945,63298.0,63297.0,0.12986149]
[1727289465562,0.004,63298.0,63297.0,0.12986149]
[1727289465769,0.004,63298.0,63297.0,0.16106149]
[1727289466670,0.004,63298.0,63297.0,0.08206549]
[1727289467471,0.004,63298.0,63296.0,0.13011628]
[1727289467472,0.21267622,63298.0,63296.0,0.13011628]
[1727289467669,0.20867622,63297.0,63296.0,0.20911328]
[1727289468069,0.20867622,63297.0,63296.0,0.078997]
[1727289468370,0.14384278,63297.0,63296.0,0.078997]
[1727289468968,0.22283878,63297.0,63296.0,0.078997]
[1727289469569,0.28767222,63297.0,63296.0,0.078997]
[1727289470368,0.22283878,63297.0,63296.0,0.078997]
[1727289470673,0.22583878,63297.0,63296.0,0.078997]
[1727289472073,0.29067222,63297.0,63296.0,0.078997]
[1727289472864,0.22583878,63297.0,63296.0,0.078997]
[1727289474272,0.22583878,63297.0,63296.0,0.31657164]
[1727289475261,0.30483478,63297.0,63296.0,0.23757464]
[1727289475461,0.079003,63292.0,63290.0,0.079004]
[1727289475662,0.4275,63291.0,63290.0,0.079004]
[1727289476577,0.4275,63291.0,63290.0,0.082004]
[1727289478379,0.506504,63291.0,63290.0,0.082004]
[1727289484275,0.3944,63291.0,63290.0,0.082004]
[1727289484470,0.3608,63291.0,63290.0,0.202004]
[1727289486577,0.3608,63291.0,63290.0,0.082004]
[1727289490488,0.50466812,63291.0,63290.0,0.082004]
[1727289490985,0.44799527,63291.0,63290.0,0.161009]
[1727289491292,0.14386812,63291.0,63290.0,0.13541253]
[1727289494694,0.34899204,63291.0,63290.0,0.13541253]
[1727289496992,0.14386812,63291.0,63290.0,0.13541253]
[1727289497587,0.20512392,63292.0,63291.0,0.079004]
[1727289497989,0.079001,63293.0,63292.0,0.079002]
[1727289498383,0.078998,63296.0,63295.0,0.078996]
[1727289499987,0.080998,63296.0,63295.0,0.078996]
[1727289501295,0.002,63296.0,63295.0,0.078996]
[1727289502998,0.3628,63296.0,63295.0,0.078996]
[1727289505398,0.441797,63296.0,63295.0,0.078996]
[1727289505593,0.58564902,63296.0,63295.0,0.078996]
[1727289506006,0.50665202,63296.0,63295.0,0.078996]
[1727289506394,0.50665211,63296.0,63295.0,0.078996]
[1727289507395,0.71183988,63296.0,63295.0,0.078996]
[1727289507596,0.50665211,63296.0,63295.0,0.078996]
[1727289507997,0.14585211,63296.0,63295.0,0.078996]
[1727289508193,0.50665211,63296.0,63295.0,0.078996]
[1727289508784,0.50665227,63296.0,63295.0,0.078996]
[1727289508989,0.50665227,63296.0,63295.0,0.05438713]
[1727289512392,0.50665227,63296.0,63290.0,0.12]
[1727289512393,0.50665227,63296.0,63292.0,0.079001]
[1727289512708,0.199001,63293.0,63292.0,0.079001]
[1727289513009,0.079001,63293.0,63292.0,0.079001]
[1727289513604,0.079001,63293.0,63292.0,0.080001]
[1727289516617,0.3608,63296.0,63292.0,0.475]
[1727289516908,0.3608,63296.0,63295.0,0.157998]
[1727289518909,0.3628,63296.0,63295.0,0.157998]
[1727289520508,0.3628,63296.0,63295.0,0.277998]
[1727289520712,0.50664398,63296.0,63295.0,0.277998]
[1727289521609,0.50664398,63296.0,63295.0,0.198999]
[1727289521805,0.50664398,63296.0,63295.0,0.078999]
[1727289522004,0.50664398,63296.0,63295.0,0.054557]
[1727289522005,0.58564098,63296.0,63295.0,0.054557]
[1727289522504,0.58564098,63296.0,63285.0,0.0037]
[1727289522505,1.58060398,63296.0,63285.0,0.0037]
[1727289522706,0.079011,63285.0,63284.0,0.079012]
[1727289522915,0.22285498,63285.0,63284.0,0.079012]
[1727289523102,0.32105498,63285.0,63284.0,0.079012]
[1727289523697,0.30805498,63285.0,63284.0,0.079012]
[1727289524207,0.079015,63282.0,63280.0,0.079017]
[1727289524510,0.31884398,63281.0,63280.0,0.079017]
[1727289524912,0.31884398,63281.0,63276.0,0.079022]
[1727289525113,0.259025,63274.0,63268.0,0.00237052]
[1727289525304,0.171,63269.0,63268.0,0.00237052]
[1727289525610,0.27615604,63269.0,63268.0,0.00237052]
[1727289525816,0.10515604,63269.0,63268.0,0.00237052]
[1727289526014,0.09415604,63269.0,63268.0,0.00237052]
[1727289526214,0.16518704,63269.0,63268.0,0.00237052]
[1727289526511,0.16618704,63269.0,63268.0,0.01337052]
[1727289527014,0.08715604,63269.0,63268.0,0.01337052]
[1727289527608,0.2445,63270.0,63268.0,0.28152952]
[1727289527911,0.20495517,63270.0,63269.0,0.254159]
[1727289528416,0.20495517,63270.0,63269.0,0.1159737]
[1727289528803,0.28398517,63270.0,63269.0,0.1159737]
[1727289529005,0.28398517,63270.0,63269.0,0.19468524]
[1727289529209,0.079031,63269.0,63268.0,0.09508306]
[1727289529400,0.079031,63269.0,63268.0,0.19999441]
[1727289530699,0.553191,63269.0,63268.0,0.19762389]
[1727289530905,0.711031,63269.0,63268.0,0.19762389]
[1727289531216,1.185191,63269.0,63268.0,0.19762389]
[1727289531716,1.186191,63269.0,63268.0,0.19762389]
[1727289532506,1.186191,63269.0,63268.0,0.003]
[1727289533906,1.626022,63269.0,63268.0,0.003]
[1727289534213,0.079039,63263.0,63260.0,0.04712144]
[1727289534417,0.5408,63261.0,63260.0,0.04712144]
[1727289534614,0.5408,63261.0,63259.0,0.04712144]
[1727289534815,0.5408,63261.0,63258.0,0.12616544]
[1727289535006,0.5408,63261.0,63259.0,0.079044]
[1727289535911,0.5418,63261.0,63259.0,0.079044]
[1727289536116,0.5428,63261.0,63260.0,0.011]
[1727289536711,0.5428,63261.0,63259.0,0.091044]
[1727289537416,0.3628,63261.0,63260.0,0.079042]
[1727289538629,0.3618,63261.0,63260.0,0.079042]
[1727289538806,0.3628,63261.0,63260.0,0.090042]
[1727289539007,0.002,63261.0,63260.0,0.561984]
[1727289542231,0.002,63261.0,63260.0,0.482942]
[1727289542517,0.002,63261.0,63260.0,0.122142]
[1727289544214,0.002,63261.0,63260.0,0.201184]
[1727289545616,0.002,63261.0,63260.0,0.280226]
[1727289546426,0.0037,63265.0,63264.0,0.237111]
[1727289546628,0.0037,63270.0,63265.0,0.079036]
[1727289546830,0.0037,63275.0,63269.0,0.079031]
[1727289547024,0.3608,63278.0,63272.0,0.18]
[1727289547329,0.03870163,63277.0,63272.0,0.18]
[1727289547531,0.03870163,63276.0,63272.0,0.18]
[1727289547925,0.001,63275.0,63272.0,0.18]
[1727289548127,0.001,63275.0,63274.0,0.079025]
[1727289548528,0.03870207,63276.0,63272.0,0.18]
[1727289548730,0.03870207,63275.0,63272.0,0.18]
[1727289548934,0.03870207,63274.0,63273.0,0.079026]
[1727289550232,0.14292136,63275.0,63274.0,0.079025]
[1727289550531,0.1914313,63275.0,63274.0,0.079025]
[1727289550733,0.04950994,63275.0,63274.0,0.079025]
[1727289550936,0.38928165,63278.0,63277.0,0.079021]
[1727289552423,0.39228165,63278.0,63277.0,0.079021]
[1727289552931,0.3638,63278.0,63277.0,0.079021]
[1727289553341,0.3638,63278.0,63277.0,0.158042]
[1727289553539,0.3638,63278.0,63277.0,0.189142]
[1727289553540,0.003,63278.0,63277.0,0.189142]
[1727289554337,0.009,63278.0,63277.0,0.189142]
[1727289555040,0.03183833,63282.0,63281.0,0.079016]
[1727289555237,0.02813833,63282.0,63281.0,0.079016]
[1727289555436,0.02813833,63282.0,63278.0,0.0314]
[1727289555437,0.079011,63286.0,63284.0,0.079012]
[1727289556733,0.46874074,63285.0,63284.0,0.079012]
[1727289557535,0.38972974,63285.0,63284.0,0.079012]
[1727289557741,0.39772974,63285.0,63284.0,0.079012]
[1727289557938,0.48493112,63285.0,63284.0,0.079012]
[1727289558241,0.12413112,63285.0,63284.0,0.079012]
[1727289558438,0.13413112,63285.0,63284.0,0.080012]
[1727289565836,0.04692974,63285.0,63284.0,0.159024]
[1727289566032,0.04692974,63285.0,63284.0,0.080012]
[1727289569336,0.04692974,63285.0,63284.0,0.159024]
[1727289569740,0.04692974,63285.0,63284.0,0.080012]
[1727289570130,0.04692974,63285.0,63284.0,0.159024]
[1727289571347,0.018,63285.0,63284.0,0.159024]
[1727289572339,0.018,63285.0,63284.0,0.279024]
[1727289578044,0.018,63285.0,63284.0,0.200012]
[1727289578248,0.018,63285.0,63284.0,0.080012]
[1727289578446,0.01,63285.0,63284.0,0.079012]
[1727289579348,0.089011,63285.0,63284.0,0.079012]
[1727289579932,0.079011,63285.0,63284.0,0.079012]
[1727289580149,0.16920876,63285.0,63284.0,0.079012]
[1727289580348,0.04169553,63285.0,63284.0,0.158024]
[1727289580549,0.09219733,63285.0,63284.0,0.158024]
[1727289580742,0.08919733,63285.0,63284.0,0.158024]
[1727289580949,0.09419733,63285.0,63284.0,0.158024]
[1727289582448,0.09419733,63285.0,63284.0,0.338024]
[1727289582646,0.09419733,63285.0,63284.0,0.417036]
[1727289582841,0.09419733,63285.0,63284.0,0.338024]
[1727289583039,0.08819733,63285.0,63284.0,0.338024]
[1727289583666,0.08919733,63285.0,63284.0,0.338024]
[1727289584142,0.08819733,63285.0,63284.0,0.338024]
[1727289586159,0.08719733,63285.0,63284.0,0.338024]
[1727289586547,0.08719733,63285.0,63284.0,0.698824]
[1727289586846,0.08819733,63285.0,63284.0,0.698824]
[1727289588354,0.001,63285.0,63284.0,0.698824]
[1727289595357,0.1448573,63285.0,63284.0,0.698824]
[1727289595666,0.3502887,63285.0,63284.0,0.698824]
[1727289600457,0.1448573,63285.0,63284.0,0.698824]
[1727289601566,0.14485771,63285.0,63284.0,0.698824]
[1727289601758,0.14485771,63285.0,63284.0,0.338024]
[1727289601958,0.14485771,63285.0,63284.0,0.698824]
[1727289602267,0.14485771,63285.0,63284.0,0.559812]
[1727289603257,0.001,63285.0,63284.0,0.75334634]
[1727289606261,0.001,63285.0,63284.0,0.63852454]
[1727289609051,0.001,63285.0,63284.0,0.75336623]
[1727289610157,0.001,63285.0,63284.0,0.559812]
[1727289610358,0.03969196,63285.0,63284.0,0.559812]
[1727289615274,0.11870296,63285.0,63284.0,0.559812]
[1727289615659,0.03969196,63285.0,63284.0,0.559812]
[1727289617863,1.28223826,63285.0,63275.0,0.0037]
[1727289618073,1.28223826,63285.0,63272.0,0.0037]
[1727289618074,0.12,63277.0,63272.0,0.0037]
[1727289618366,0.12,63277.0,63271.0,0.0037]
[1727289618367,0.199025,63274.0,63273.0,0.25310282]
[1727289619063,0.199025,63274.0,63273.0,0.11546863]
[1727289619374,0.191025,63274.0,63273.0,0.20994973]
[1727289619976,0.192025,63274.0,63273.0,0.20994973]
[1727289620166,0.192025,63274.0,63273.0,0.11546863]
[1727289620567,0.080025,63274.0,63273.0,0.11546863]
[1727289620770,0.080025,63274.0,63273.0,0.23546863]
[1727289620970,0.080025,63274.0,63273.0,0.23646863]
[1727289621872,0.080025,63274.0,63273.0,0.11646863]
[1727289622985,0.080025,63274.0,63273.0,0.19549463]
[1727289623374,0.080025,63274.0,63273.0,0.28997573]
[1727289624280,0.080025,63274.0,63273.0,0.19549463]
[1727289625385,0.080025,63274.0,63273.0,0.080026]
[1727289627779,0.001,63274.0,63273.0,0.080026]
[1727289630997,0.080025,63274.0,63273.0,0.080026]
[1727289631377,0.080025,63274.0,63273.0,0.001]
[1727289631586,0.51985,63274.0,63273.0,0.001]
[1727289631790,1.59397,63274.0,63265.0,0.491533]
[1727289631981,1.59397,63274.0,63265.0,0.439836]
[1727289631982,0.199035,63266.0,63265.0,0.439836]
[1727289632491,0.079035,63266.0,63265.0,0.439836]
[1727289632681,0.079031,63270.0,63269.0,0.079031]
[1727289632887,0.079031,63270.0,63269.0,0.199031]
[1727289633387,0.079031,63270.0,63269.0,0.31207739]
[1727289634387,0.079026,63274.0,63273.0,0.079026]
[1727289634780,0.10780433,63277.0,63276.0,0.079022]
[1727289634985,0.3608,63280.0,63279.0,0.079019]
[1727289635181,0.3608,63280.0,63279.0,0.14185562]
[1727289635182,0.38970907,63280.0,63279.0,0.14185562]
[1727289635484,0.38970907,63280.0,63279.0,0.14185761]
[1727289635687,0.46872607,63280.0,63279.0,0.14185761]
[1727289635889,0.46872607,63280.0,63279.0,0.26185761]
[1727289636790,0.46872607,63280.0,63279.0,0.14185761]
[1727289637297,0.46872607,63280.0,63279.0,0.079019]
[1727289637588,0.46972607,63280.0,63279.0,0.079019]
[1727289637794,0.47472607,63280.0,63279.0,0.079019]
[1727289640988,0.3668,63280.0,63279.0,0.199019]
[1727289641191,0.3668,63280.0,63279.0,0.31195154]
[1727289643099,0.565817,63280.0,63279.0,0.11293254]
[1727289644101,0.565817,63280.0,63279.0,0.20741364]
[1727289644401,0.565817,63280.0,63279.0,0.28643264]
[1727289645203,0.565817,63280.0,63279.0,0.19195154]
[1727289646094,0.565817,63280.0,63279.0,0.32659097]
[1727289648303,0.51046521,63280.0,63279.0,0.079019]
[1727289651701,0.205017,63280.0,63279.0,0.079019]
[1727289652410,0.085017,63280.0,63279.0,0.079019]
[1727289655207,0.205017,63280.0,63279.0,0.079019]
[1727289655421,0.205017,63280.0,63279.0,0.19162464]
[1727289656811,0.205017,63280.0,63279.0,0.32585084]
[1727289658418,0.205017,63280.0,63279.0,0.19162464]
[1727289659106,0.085017,63280.0,63279.0,0.19162464]
[1727289659308,0.085017,63280.0,63279.0,0.28610963]
[1727289660613,0.085017,63280.0,63279.0,0.28611255]
[1727289661411,0.006,63280.0,63279.0,0.40611255]
[1727289661624,0.006,63280.0,63279.0,0.52487895]
[1727289661911,0.079014,63283.0,63282.0,0.079014]
[1727289662116,0.079014,63283.0,63282.0,0.32585495]
[1727289662806,0.199014,63283.0,63282.0,0.32585495]
[1727289663317,0.15947791,63283.0,63282.0,0.32585495]
[1727289663612,0.17147791,63283.0,63282.0,0.32685495]
[1727289663814,0.132,63283.0,63282.0,0.32685495]
[1727289664917,0.211014,63283.0,63282.0,0.24784095]
[1727289665412,0.244814,63283.0,63282.0,0.24784095]
[1727289666318,0.244814,63283.0,63282.0,0.11360856]
[1727289666319,0.323828,63283.0,63282.0,0.11360856]
[1727289666505,0.323828,63283.0,63282.0,0.24747065]
[1727289666708,0.079024,63275.0,63274.0,0.11400065]
[1727289666916,0.079024,63275.0,63274.0,0.24653682]
[1727289667812,0.079024,63275.0,63274.0,0.24753682]
[1727289668208,0.080024,63275.0,63274.0,0.24753682]
[1727289668611,0.080024,63275.0,63274.0,0.13357634]
[1727289670207,0.080024,63275.0,63274.0,0.001]
[1727289672515,0.001,63275.0,63274.0,0.200025]
[1727289675217,0.001,63275.0,63274.0,0.27905]
[1727289677327,0.001,63275.0,63274.0,0.200025]
[1727289678523,0.0037,63282.0,63280.0,0.079017]
[1727289678832,0.079016,63281.0,63280.0,0.079017]
[1727289679124,0.079016,63281.0,63280.0,0.21105482]
[1727289680526,0.013,63282.0,63281.0,0.079016]
[1727289680730,0.005,63282.0,63281.0,0.079016]
[1727289681731,0.02815907,63284.0,63283.0,0.079014]
[1727289681931,0.3645,63288.0,63287.0,0.079009]
[1727289682128,0.3608,63288.0,63287.0,0.30933492]
[1727289682332,0.3608,63288.0,63287.0,0.44046424]
[1727289683445,0.3608,63288.0,63287.0,0.44146424]
[1727289683446,0.3728,63288.0,63287.0,0.44146424]
[1727289683751,0.026,63288.0,63287.0,0.80226424]
[1727289683943,0.079005,63290.0,63289.0,0.079006]
[1727289684136,0.079005,63290.0,63289.0,0.30933192]
[1727289684336,0.079,63294.0,63293.0,0.078999]
[1727289684645,0.079,63294.0,63293.0,0.18932492]
[1727289685529,0.11769117,63294.0,63293.0,0.078999]
[1727289685935,0.13169117,63294.0,63293.0,0.079999]
[1727289686436,0.14569117,63294.0,63293.0,0.080999]
[1727289687638,0.107,63294.0,63293.0,0.080999]
[1727289687841,0.2173785,63294.0,63293.0,0.080999]
[1727289688937,0.107,63294.0,63293.0,0.080999]
[1727289693045,0.107,63294.0,63293.0,0.002]
[1727289694042,0.186,63294.0,63293.0,0.06483208]
[1727289694442,0.186,63294.0,63293.0,0.002]
[1727289695047,1.181,63294.0,63293.0,0.04713133]
[1727289695341,1.181,63294.0,63290.0,0.06283208]
[1727289695342,0.079004,63291.0,63290.0,0.06283208]
[1727289696144,0.158008,63291.0,63290.0,0.06283208]
[1727289696345,0.079005,63290.0,63289.0,0.06283208]
[1727289697141,0.07901,63286.0,63285.0,0.15765243]
[1727289697446,0.07901,63286.0,63285.0,0.18859005]
[1727289697636,0.07901,63286.0,63285.0,0.26715277]
[1727289698246,0.07901,63286.0,63285.0,0.18859005]
[1727289698542,0.07901,63286.0,63285.0,0.26716252]
[1727289698742,0.09101,63286.0,63285.0,0.080011]
[1727289698949,0.09701,63286.0,63285.0,0.081011]
[1727289699140,0.09701,63286.0,63285.0,0.15958347]
[1727289699751,0.09701,63286.0,63285.0,0.081011]
[1727289703249,0.12558309,63286.0,63285.0,0.081011]
[1727289707551,0.12558309,63286.0,63285.0,0.28517148]
[1727289707948,0.12558309,63286.0,63285.0,0.081011]
[1727289708154,0.12558309,63286.0,63285.0,0.28517849]